[Event "2nd Gujarat Open 2019"]
[Site "Ahmedabad, Gujarat"]
[Date "2019.09.22"]
[Round "?"]
[White "Kumthekar, Shubham"]
[Black "Saptarshi, Roy"]
[Result "0-1"]
[ECO "D07"]
[WhiteElo "1817"]
[BlackElo "2480"]
[Annotator "ChessBase"]
[PlyCount "190"]
[EventDate "2019.09.22"]
[EventCountry "IND"]
[SourceTitle "playchess.com"]
[Source "ChessBase"]
[SourceQuality "1"]
[TimeControl "5400+30"]

1. d4 {[%emt 0:00:00]} d5 {[%emt 0:00:49]} 2. c4 {[%emt 0:00:00]} Nc6 {[%emt 0:00:18]} 3. e3 {[%emt 0:00:00]} e5 {[%emt 0:01:02]} 4. dxe5 {[%emt 0:00:00]} Bb4+ {[%emt 0:00:19]} 5. Bd2 {[%emt 0:00:43]} dxc4 {[%emt 0:00:21]} 6. Bxc4 {[%emt 0:02:00]} Bxd2+ {[%emt 0:00:14]} 7. Qxd2 {[%emt 0:02:03]} Qxd2+ {[%emt 0:00:22]} 8. Nxd2 {[%emt 0:00:23]} Nxe5 {[%emt 0:00:06]} 9. Be2 {[%emt 0:10:48]} Nf6 {[%emt 0:00:19]} 10. Ngf3 {[%emt 0:05:19]} Nc6 {[%emt 0:00:32]} 11. O-O {[%emt 0:02:15]} O-O {[%emt 0:01:06]} 12. Rac1 {[%emt 0:02:25]} a5 {[%emt 0:05:24]} 13. a3 {[%emt 0:11:17]} Be6 {[%emt 0:02:47]} 14. Ng5 {[%emt 0:11:39]} Bd5 {[%emt 0:07:27]} 15. Nh3 {[%emt 0:08:44]} Rfd8 {[%emt 0:02:09]} 16. Rfd1 {[%emt 0:00:28]} Ne5 {[%emt 0:10:23]} 17. Nf4 {[%emt 0:09:03]} Bc6 {[%emt 0:01:04]} 18. Nc4 {[%emt 0:00:57]} Nxc4 {[%emt 0:07:26]} 19. Bxc4 {[%emt 0:00:22]} Kf8 {[%emt 0:00:13]} 20. Kf1 {[%emt 0:08:43]} a4 {[%emt 0:01:53]} 21. f3 {[%emt 0:07:39]} Ke7 {[%emt 0:02:31]} 22. Ke2 {[%emt 0:01:32]} Rxd1 {[%emt 0:00:19]} 23. Rxd1 {[%emt 0:00:14]} Ra5 {[%emt 0:00:12]} 24. Nd3 {[%emt 0:03:05]} h5 {[%emt 0:05:43]} 25. h4 {[%emt 0:03:02]} Be8 {[%emt 0:04:28]} 26. e4 {[%emt 0:03:32]} Nd7 {[%emt 0:03:56]} 27. Rc1 {[%emt 0:02:59]} c6 {[%emt 0:04:45]} 28. Ke3 {[%emt 0:01:46]} f6 {[%emt 0:04:29]} 29. f4 {[%emt 0:01:51]} g6 {[%emt 0:04:14]} 30. g3 {[%emt 0:01:00]} Bf7 {[%emt 0:01:50]} 31. Rc2 {[%emt 0:00:41]} Be8 {[%emt 0:03:09]} 32. Rc1 {[%emt 0:00:08]} Nb6 {[%emt 0:01:43]} 33. Ba2 {[%emt 0:00:41]} Rb5 {[%emt 0:00:18]} 34. Kd4 {[%emt 0:00:45]} Nd7 {[%emt 0:03:38]} 35. Bc4 {[%emt 0:00:38]} Ra5 {[%emt 0:01:53]} 36. Ke3 {[%emt 0:00:35]} f5 {[%emt 0:00:58]} 37. Re1 {[%emt 0:00:33]} Nf6 {[%emt 0:03:01]} 38. exf5 {[%emt 0:00:20]} gxf5 {[%emt 0:00:21]} 39. Kd4+ {[%emt 0:00:07]} Ne4 {[%emt 0:00:21]} 40. Nf2 {[%emt 0:01:02]} Bg6 {[%emt 0:00:01]} 41. Nxe4 {[%emt 0:00:37]} fxe4 {[%emt 0:00:02]} 42. Re2 {[%emt 0:00:24]} Kf6 {[%emt 0:00:18]} 43. Kc3 {[%emt 0:00:17]} Ra8 {[%emt 0:00:53]} 44. Re3 {[%emt 0:00:12]} Rd8 {[%emt 0:00:16]} 45. Be2 {[%emt 0:00:09]} b5 {[%emt 0:00:08]} 46. Kc2 {[%emt 0:01:17]} Rd5 {[%emt 0:00:17]} 47. Bf1 {[%emt 0:00:24]} Rd4 {[%emt 0:01:15]} 48. Kc1 {[%emt 0:00:34]} Be8 {[%emt 0:01:19]} 49. Bg2 {[%emt 0:00:12]} Bg6 {[%emt 0:00:11]} 50. Bf1 {[%emt 0:00:05]} Bf7 {[%emt 0:01:27]} 51. Rc3 {[%emt 0:00:44]} Rd6 {[%emt 0:00:22]} 52. Be2 {[%emt 0:00:15]} Be8 {[%emt 0:00:48]} 53. Kc2 {[%emt 0:00:31]} Rd5 {[%emt 0:00:34]} 54. Bf1 {[%emt 0:00:37]} c5 {[%emt 0:00:14]} 55. Re3 {[%emt 0:01:53]} Rd4 {[%emt 0:01:14]} 56. Be2 {[%emt 0:00:00]} Kf5 {[%emt 0:00:56]} 57. Rc3 {[%emt 0:00:00]} c4 {[%emt 0:00:15]} 58. Re3 {[%emt 0:00:00]} Bf7 {[%emt 0:00:55]} 59. Kc3 {[%emt 0:00:09]} Rd6 {[%emt 0:00:35]} 60. Kc2 {[%emt 0:00:22]} Bg6 {[%emt 0:00:15]} 61. Kc3 {[%emt 0:00:30]} Kf6 {[%emt 0:00:35]} 62. Kc2 {[%emt 0:00:13]} Rd5 {[%emt 0:00:24]} 63. Kc3 {[%emt 0:00:41]} Rd6 {[%emt 0:00:48]} 64. Kc2 {[%emt 0:00:16]} Rd8 {[%emt 0:01:20]} 65. Kc3 {[%emt 0:00:09]} Ke6 {[%emt 0:00:14]} 66. Kc2 {[%emt 0:01:11]} Kd5 {[%emt 0:00:23]} 67. Kc3 {[%emt 0:00:45]} Kc5 {[%emt 0:01:17]} 68. Bf1 {[%emt 0:01:35]} Rd1 {[%emt 0:00:34]} 69. Bh3 {[%emt 0:00:36]} Rg1 {[%emt 0:09:34]} 70. Be6 {[%emt 0:00:28]} Rf1 {[%emt 0:00:18]} 71. Bh3 {[%emt 0:00:30]} Rf2 {[%emt 0:00:16]} 72. Be6 {[%emt 0:00:32]} Kd6 {[%emt 0:00:36]} 73. Bh3 {[%emt 0:00:21]} Kd5 {[%emt 0:00:03]} 74. Bd7 {[%emt 0:00:07]} Rf3 {[%emt 0:00:28]} 75. Kd2 {[%emt 0:00:34]} Rf1 {[%emt 0:01:45]} 76. Kc3 {[%emt 0:00:12]} Kc5 {[%emt 0:00:23]} 77. Bh3 {[%emt 0:00:13]} Rf2 {[%emt 0:00:38]} 78. Bd7 {[%emt 0:00:06]} Bh7 {[%emt 0:00:08]} 79. Be8 {[%emt 0:01:31]} Rf3 {[%emt 0:01:51]} 80. Kd2 {[%emt 0:00:05]} Kd4 {[%emt 0:00:28]} 81. Rxf3 {[%emt 0:00:17]} exf3 {[%emt 0:00:01]} 82. Bxh5 {[%emt 0:00:16]} f2 {[%emt 0:00:07]} 83. Ke2 {[%emt 0:00:11]} b4 {[%emt 0:00:04]} 84. Be8 {[%emt 0:01:26]} c3 {[%emt 0:00:44]} 85. bxc3+ {[%emt 0:00:12]} Kxc3 {[%emt 0:00:05]} 86. axb4 {[%emt 0:01:10]} a3 {[%emt 0:00:01]} 87. Bf7 {[%emt 0:00:39]} Bd3+ {[%emt 0:00:05]} 88. Kxf2 {[%emt 0:00:02]} Bc4 {[%emt 0:00:04]} 89. Bxc4 {[%emt 0:01:04]} Kxc4 {[%emt 0:00:02]} 90. Kf3 {[%emt 0:00:34]} a2 {[%emt 0:00:03]} 91. Kg4 {[%emt 0:00:16]} a1=Q {[%emt 0:00:04]} 92. h5 {[%emt 0:00:13]} Kd5 {[%emt 0:00:29]} 93. h6 {[%emt 0:00:35]} Ke6 {[%emt 0:00:21]} 94. Kg5 {[%emt 0:00:16]} Qf6+ {[%emt 0:00:16]} 95. Kh5 {[%emt 0:00:08]} Kf5 {[%emt 0:00:07]} 0-1

[Event "2nd Gujarat Open 2019"]
[Site "Ahmedabad, Gujarat"]
[Date "2019.09.22"]
[Round "?"]
[White "Md Zia Uddin"]
[Black "Nguyen, Van Huy"]
[Result "0-1"]
[ECO "B19"]
[WhiteElo "1815"]
[BlackElo "2454"]
[Annotator "ChessBase"]
[PlyCount "85"]
[EventDate "2019.09.22"]
[EventCountry "IND"]
[SourceTitle "playchess.com"]
[Source "ChessBase"]
[SourceQuality "1"]
[TimeControl "5400+30"]

1. e4 {[%emt 0:00:00]} c6 {[%emt 0:00:03]} 2. d4 {[%emt 0:00:23]} d5 {[%emt 0:00:18]} 3. Nc3 {[%emt 0:00:58]} dxe4 {[%emt 0:00:16]} 4. Nxe4 {[%emt 0:00:20]} Bf5 {[%emt 0:00:18]} 5. Ng3 {[%emt 0:01:00]} Bg6 {[%emt 0:00:07]} 6. h4 {[%emt 0:01:13]} h6 {[%emt 0:00:17]} 7. Nf3 {[%emt 0:00:54]} Nd7 {[%emt 0:00:12]} 8. h5 {[%emt 0:00:55]} Bh7 {[%emt 0:00:53]} 9. Bd3 {[%emt 0:00:40]} Bxd3 {[%emt 0:00:07]} 10. Qxd3 {[%emt 0:00:10]} e6 {[%emt 0:00:05]} 11. Bd2 {[%emt 0:01:04]} Ngf6 {[%emt 0:00:13]} 12. O-O-O {[%emt 0:01:18]} Be7 {[%emt 0:00:11]} 13. Ne4 {[%emt 0:06:32]} Qb6 {[%emt 0:01:22]} 14. Kb1 {[%emt 0:10:25]} Rd8 {[%emt 0:01:52]} 15. Qe2 {[%emt 0:14:54]} Nxe4 {[%emt 0:08:05]} 16. Qxe4 {[%emt 0:00:40]} Nf6 {[%emt 0:00:06]} 17. Qe2 {[%emt 0:12:26]} c5 {[%emt 0:02:27]} 18. Bc3 {[%emt 0:06:10]} Nd5 {[%emt 0:03:33]} 19. Qe1 {[%emt 0:07:05]} Nxc3+ {[%emt 0:01:33]} 20. Qxc3 {[%emt 0:00:22]} O-O {[%emt 0:00:30]} 21. Qb3 {[%emt 0:16:18]} Qxb3 {[%emt 0:02:42]} 22. axb3 {[%emt 0:00:35]} cxd4 {[%emt 0:00:09]} 23. Nxd4 {[%emt 0:01:50]} Bc5 {[%emt 0:00:59]} 24. c3 {[%emt 0:03:09]} Rd5 {[%emt 0:01:18]} 25. f4 {[%emt 0:05:40]} Rfd8 {[%emt 0:00:49]} 26. Kc2 {[%emt 0:00:58]} Bxd4 {[%emt 0:00:16]} 27. Rxd4 {[%emt 0:00:58]} Rxd4 {[%emt 0:00:06]} 28. cxd4 {[%emt 0:00:09]} Rxd4 {[%emt 0:00:04]} 29. g3 {[%emt 0:00:38]} f5 {[%emt 0:01:28]} 30. Rd1 {[%emt 0:00:59]} Rxd1 {[%emt 0:00:57]} 31. Kxd1 {[%emt 0:00:07]} Kf7 {[%emt 0:00:34]} 32. Kd2 {[%emt 0:00:43]} Kf6 {[%emt 0:00:04]} 33. Kd3 {[%emt 0:01:34]} e5 {[%emt 0:00:18]} 34. Ke3 {[%emt 0:02:01]} e4 {[%emt 0:00:28]} 35. Kd4 {[%emt 0:01:11]} g6 {[%emt 0:00:23]} 36. Ke3 {[%emt 0:01:57]} gxh5 {[%emt 0:00:10]} 37. Kd4 {[%emt 0:00:15]} a5 {[%emt 0:00:06]} 38. Ke3 {[%emt 0:01:14]} Kg6 {[%emt 0:00:06]} 39. Kd4 {[%emt 0:00:42]} h4 {[%emt 0:00:09]} 40. g4 {[%emt 0:00:51]} h3 {[%emt 0:00:11]} 41. gxf5+ {[%emt 0:00:10]} Kxf5 {[%emt 0:00:05]} 42. Ke3 {[%emt 0:00:22]} h2 {[%emt 0:00:05]} 43. Kd4 {[%emt 0:01:40] Ke5+} 0-1

[Event "2nd Gujarat Open 2019"]
[Site "Ahmedabad, Gujarat"]
[Date "2019.09.22"]
[Round "?"]
[White "Dave Sneh"]
[Black "Das, Sayantan"]
[Result "0-1"]
[ECO "E61"]
[WhiteElo "1809"]
[BlackElo "2434"]
[Annotator "NA"]
[PlyCount "30"]
[EventDate "2019.09.22"]
[EventCountry "IND"]
[SourceTitle "playchess.com"]
[Source "ChessBase"]
[SourceQuality "1"]
[TimeControl "5400+30"]

1. d4 {[%emt 0:00:00]} Nf6 {[%emt 0:05:44]} 2. c4 {[%emt 0:00:00]} g6 {[%emt 0:00:34]} 3. Nc3 {[%emt 0:00:00]} Bg7 {[%emt 0:00:07]} 4. Nf3 {[%emt 0:00:00]} O-O {[%emt 0:00:09]} 5. Bg5 {[%emt 0:00:00]} d6 {[%emt 0:02:08]} 6. Qd2 {[%emt 0:01:18]} Nbd7 {[%emt 0:03:32]} 7. O-O-O {[%emt 0:03:36]} c6 {[%emt 0:06:19]} 8. h3 {[%emt 0:10:57]} b5 {[%emt 0:02:21]} 9. Qd3 {[%emt 0:05:41]} b4 {[%emt 0:03:59]} 10. Na4 {[%emt 0:02:17]} Qa5 {[%emt 0:00:59]} 11. Qb3 {[%emt 0:11:46]} Nb6 {[%emt 0:00:47]} 12. Nxb6 {[%emt 0:00:04]} axb6 {[%emt 0:00:05]} 13. Bd2 {[%emt 0:00:10]} Qxa2 {[%emt 0:03:20]} 14. Qxa2 {[%emt 0:01:23]} Rxa2 {[%emt 0:00:03]} 15. Kb1 {[%emt 0:00:11]} b3 {[%emt 0:00:22]} 0-1

[Event "2nd Gujarat Open 2019"]
[Site "Ahmedabad, Gujarat"]
[Date "2019.09.22"]
[Round "?"]
[White "Aniruddh Chatterjee"]
[Black "Lugovskoy, Maxim"]
[Result "0-1"]
[ECO "A45"]
[WhiteElo "1805"]
[BlackElo "2422"]
[Annotator "NA"]
[PlyCount "78"]
[EventDate "2019.09.22"]
[EventCountry "IND"]
[SourceTitle "playchess.com"]
[Source "ChessBase"]
[SourceQuality "1"]
[TimeControl "5400+30"]

1. d4 {[%emt 0:00:30]} Nf6 {[%emt 0:05:21]} 2. Bg5 {[%emt 0:02:22]} c5 {[%emt 0:01:22]} 3. Bxf6 {[%emt 0:00:26]} gxf6 {[%emt 0:00:25]} 4. e3 {[%emt 0:01:26]} Qb6 {[%emt 0:01:48]} 5. dxc5 {[%emt 0:00:46]} Qxb2 {[%emt 0:01:17]} 6. Qd4 {[%emt 0:00:10]} Qc1+ {[%emt 0:00:39]} 7. Qd1 {[%emt 0:01:54]} Qxd1+ {[%emt 0:00:06]} 8. Kxd1 {[%emt 0:00:03]} e6 {[%emt 0:00:05]} 9. Nc3 {[%emt 0:01:52]} Bxc5 {[%emt 0:00:07]} 10. Bd3 {[%emt 0:00:04]} Nc6 {[%emt 0:00:38]} 11. Rb1 {[%emt 0:03:14]} f5 {[%emt 0:00:52]} 12. Nge2 {[%emt 0:00:26]} b6 {[%emt 0:00:07]} 13. e4 {[%emt 0:00:10]} fxe4 {[%emt 0:00:06]} 14. Nxe4 {[%emt 0:00:03]} Be7 {[%emt 0:00:24]} 15. g4 {[%emt 0:06:33]} Bb7 {[%emt 0:00:45]} 16. f4 {[%emt 0:01:48]} O-O-O {[%emt 0:01:49]} 17. h4 {[%emt 0:06:34]} Nb4 {[%emt 0:00:40]} 18. Rh3 {[%emt 1:10:39]} Rdg8 {[%emt 0:00:59]} 19. g5 {[%emt 0:00:00]} h6 {[%emt 0:00:06]} 20. Nf2 {[%emt 0:00:00]} hxg5 {[%emt 0:00:16]} 21. fxg5 {[%emt 0:00:00]} Nxd3 {[%emt 0:00:28]} 22. cxd3 {[%emt 0:00:00]} f6 {[%emt 0:00:04]} 23. gxf6 {[%emt 0:00:00]} Bxf6 {[%emt 0:00:07]} 24. Rb4 {[%emt 0:00:00]} Be7 {[%emt 1:23:29]} 25. Rc4+ Kb8 26. Kd2 Bg2 27. Rh2 Bd5 28. Rg4 Rxg4 29. Nxg4 Rxh4 30. Rxh4 Bxh4 31. Nc3 Bc6 32. Ne5 Kc7 {[%emt 0:00:00]} 33. d4 d6 {[%emt 0:00:00]} 34. Nc4 b5 {[%emt 0:00:00]} 35. Nb2 a5 {[%emt 0:00:00]} 36. Nd3 b4 {[%emt 0:00:00]} 37. Nd1 Bd5 {[%emt 0:00:00]} 38. Nc1 Bg5+ {[%emt 0:00:00]} 39. Ne3 Bc4 {[%emt 0:00:00]} 0-1

[Event "2nd Gujarat Open 2019"]
[Site "Ahmedabad, Gujarat"]
[Date "2019.09.22"]
[Round "?"]
[White "Joshi, Deergha Raj"]
[Black "Himanshu, Sharma"]
[Result "0-1"]
[ECO "B34"]
[WhiteElo "1799"]
[BlackElo "2408"]
[Annotator "NA"]
[PlyCount "62"]
[EventDate "2019.09.22"]
[EventCountry "IND"]
[SourceTitle "playchess.com"]
[Source "ChessBase"]
[SourceQuality "1"]
[TimeControl "5400+30"]

1. e4 g6 2. Nf3 Bg7 3. Be2 c5 4. d4 cxd4 5. Nxd4 Nc6 6. Nf3 Nf6 7. Nc3 O-O 8. O-O a6 9. h3 d6 10. Be3 b5 11. a3 Bb7 12. Bd3 d5 13. exd5 Nxd5 14. Nxd5 Qxd5 15. Rb1 Rad8 16. Qc1 e5 17. Rd1 e4 18. Be2 {[%emt 0:08:30]} Qe6 {[%emt 0:08:30]} 19. Rxd8 {[%emt 0:00:30]} Rxd8 {[%emt 0:00:30]} 20. Ng5 {[%emt 0:00:30]} Qe7 {[%emt 0:00:30]} 21. h4 {[%emt 0:00:30]} h6 {[%emt 0:00:30]} 22. Nh3 {[%emt 0:00:30]} Qxh4 {[%emt 0:00:30]} 23. Bf1 {[%emt 0:00:30]} Ne5 {[%emt 0:00:30]} 24. Bf4 {[%emt 0:00:30]} Qh5 {[%emt 0:00:30]} 25. Bg3 {[%emt 0:00:30]} Qf5 {[%emt 0:00:30]} 26. Qe3 {[%emt 0:00:30]} g5 {[%emt 0:00:30]} 27. Bxe5 {[%emt 0:00:30]} Qxe5 {[%emt 0:00:30]} 28. c4 {[%emt 0:00:30]} Qf5 {[%emt 0:00:30]} 29. Qb6 {[%emt 0:00:30]} Rd7 {[%emt 0:00:30]} 30. Qe3 {[%emt 0:00:30]} Bd4 {[%emt 0:00:30]} 31. Qg3 {[%emt 0:00:30]} Be5 {[%emt 0:00:30]} 0-1

[Event "2nd Gujarat Open 2019"]
[Site "Ahmedabad, Gujarat"]
[Date "2019.09.22"]
[Round "?"]
[White "Akshit Jha"]
[Black "Murshed, Niaz"]
[Result "1/2-1/2"]
[ECO "B49"]
[WhiteElo "1789"]
[BlackElo "2405"]
[Annotator "NA"]
[PlyCount "64"]
[EventDate "2019.09.22"]
[EventCountry "IND"]
[SourceTitle "playchess.com"]
[Source "ChessBase"]
[SourceQuality "1"]
[TimeControl "5400+30"]

1. e4 {[%emt 1:30:30]} c5 {[%emt 1:30:30]} 2. Nf3 {[%emt 0:00:30]} Nc6 {[%emt 0:00:30]} 3. d4 {[%emt 0:00:30]} cxd4 {[%emt 0:00:30]} 4. Nxd4 {[%emt 0:00:30]} Qc7 {[%emt 0:00:30]} 5. Be3 {[%emt 0:00:30]} e6 {[%emt 0:00:30]} 6. Be2 {[%emt 0:00:30]} Nf6 {[%emt 0:00:30]} 7. Nc3 {[%emt 0:00:30]} a6 {[%emt 0:00:30]} 8. O-O {[%emt 0:00:30]} Bb4 {[%emt 0:00:30]} 9. Na4 {[%emt 0:00:30]} Be7 {[%emt 0:00:30]} 10. Nxc6 {[%emt 0:00:30]} bxc6 {[%emt 0:00:30]} 11. Nb6 {[%emt 0:00:30]} Rb8 {[%emt 0:00:30]} 12. Nxc8 {[%emt 0:00:30]} Qxc8 {[%emt 0:00:30]} 13. e5 {[%emt 0:00:30]} Nd5 {[%emt 0:00:30]} 14. Bc1 {[%emt 0:00:30]} Bc5 {[%emt 0:00:30]} 15. c4 {[%emt 0:00:30]} Ne7 {[%emt 0:00:30]} 16. Kh1 {[%emt 0:00:30]} Qc7 {[%emt 0:00:30]} 17. f4 {[%emt 0:00:30]} h5 {[%emt 0:00:30]} 18. b3 {[%emt 0:00:30]} h4 {[%emt 0:00:30]} 19. Bg4 {[%emt 0:00:30]} g6 {[%emt 0:00:30]} 20. Qd3 {[%emt 0:00:30]} Qa7 {[%emt 0:00:30]} 21. Bb2 {[%emt 0:00:30]} Nf5 22. Bxf5 gxf5 23. Rf3 a5 24. Rd1 a4 25. Qc2 axb3 26. axb3 Qb6 27. Rfd3 Rb7 28. Qd2 Bb4 29. Qe2 Bc5 30. Qd2 Bb4 31. Qe2 Ra7 32. Bd4 c5 1/2-1/2

[Event "2nd Gujarat Open 2019"]
[Site "Ahmedabad, Gujarat"]
[Date "2019.09.22"]
[Round "?"]
[White "Abhirami Madabushi"]
[Black "Eraschenkov, Denis"]
[Result "0-1"]
[ECO "A48"]
[WhiteElo "1786"]
[BlackElo "2390"]
[Annotator "NA"]
[PlyCount "94"]
[EventDate "2019.09.22"]
[EventCountry "IND"]
[SourceTitle "playchess.com"]
[Source "ChessBase"]
[SourceQuality "1"]
[TimeControl "5400+30"]

1. d4 {[%emt 0:00:00]} Nf6 {[%emt 0:00:00]} 2. Nf3 {[%emt 0:00:05]} g6 {[%emt 0:00:10]} 3. Bf4 {[%emt 0:01:02]} Bg7 {[%emt 0:00:42]} 4. Nbd2 {[%emt 0:00:20]} d6 {[%emt 0:02:36]} 5. e4 {[%emt 0:01:09]} O-O {[%emt 0:01:53]} 6. Bd3 {[%emt 0:01:11]} Nbd7 {[%emt 0:02:34]} 7. Qe2 {[%emt 0:01:02]} Nh5 {[%emt 0:02:42]} 8. Be3 {[%emt 0:04:52]} e5 {[%emt 0:01:02]} 9. dxe5 {[%emt 0:00:31]} dxe5 {[%emt 0:00:56]} 10. O-O-O {[%emt 0:02:51]} Nf4 {[%emt 0:03:31]} 11. Bxf4 {[%emt 0:00:58]} exf4 {[%emt 0:00:06]} 12. Kb1 {[%emt 0:09:07]} Qe7 {[%emt 0:05:12]} 13. h4 {[%emt 0:02:43]} Nc5 {[%emt 0:13:41]} 14. h5 {[%emt 0:03:53]} Nxd3 {[%emt 0:12:04]} 15. Qxd3 {[%emt 0:00:36]} Rd8 {[%emt 0:01:03]} 16. Qe2 {[%emt 0:01:20]} Bg4 17. hxg6 {[%emt 0:00:30]} hxg6 18. Qc4 {[%emt 0:00:30]} Be6 19. Qb5 {[%emt 0:00:30]} c5 20. Nb3 {[%emt 0:00:30]} b6 21. a4 {[%emt 0:00:30]} g5 22. a5 {[%emt 0:00:30]} g4 23. Nfd2 {[%emt 0:00:30]} a6 24. Qxb6 {[%emt 0:00:30]} c4 25. Qc5 {[%emt 0:00:30]} Qd7 26. Nc1 {[%emt 0:00:30]} Rac8 27. Qg5 {[%emt 0:00:30]} Qb5 28. Qxb5 {[%emt 0:00:30]} axb5 29. Na2 {[%emt 0:00:30]} Ra8 30. Nb4 {[%emt 0:00:30]} Rd7 31. a6 {[%emt 0:00:30]} Bf8 32. Nc6 {[%emt 0:00:30]} Rd6 33. Nb4 {[%emt 0:00:30]} Rxd2 34. Rxd2 {[%emt 0:00:30]} Bxb4 35. c3 {[%emt 0:00:30]} Be7 36. Rh5 {[%emt 0:00:30]} Rxa6 37. Rxb5 {[%emt 0:00:30]} Kg7 38. f3 {[%emt 0:00:30]} gxf3 39. gxf3 {[%emt 0:00:30]} Ra8 40. Kc2 {[%emt 0:00:30]} Rh8 41. Rg2+ {[%emt 0:00:30]} Kf6 42. Kd1 {[%emt 0:00:30]} Rd8+ 43. Rd2 {[%emt 0:00:30]} Rg8 44. Rb7 {[%emt 0:00:30]} Rg1+ 45. Kc2 {[%emt 0:00:30]} Bc5 46. Rb5 {[%emt 0:00:30]} Be3 47. Rd1 {[%emt 0:00:30]} Rg2+ {[%emt 0:00:00] Kc1 Rf2+} 0-1

[Event "2nd Gujarat Open 2019"]
[Site "Ahmedabad, Gujarat"]
[Date "2019.09.22"]
[Round "?"]
[White "Rohnit G Amin"]
[Black "Manik, Mikulas"]
[Result "1/2-1/2"]
[ECO "E73"]
[WhiteElo "1772"]
[BlackElo "2375"]
[Annotator "NA"]
[PlyCount "88"]
[EventDate "2019.09.22"]
[EventCountry "IND"]
[SourceTitle "playchess.com"]
[Source "ChessBase"]
[SourceQuality "1"]
[TimeControl "5400+30"]

1. d4 Nf6 2. c4 g6 3. Nc3 Bg7 4. e4 d6 5. Be2 O-O 6. Be3 e5 7. d5 a5 8. h4 Na6 9. h5 Nc5 10. Bf3 Bd7 11. Qd2 c6 12. Rd1 cxd5 13. exd5 e4 14. Be2 Ng4 15. h6 Bh8 16. Bxc5 dxc5 17. Nxe4 Qe7 18. f3 f5 19. d6 Qe5 20. fxg4 fxe4 21. Qd5+ Qxd5 22. Rxd5 Bd4 23. Nh3 b6 24. Ng5 Bxb2 25. Rh3 Bd4 26. Rb3 Ba4 27. Ne6 Bxb3 28. axb3 Rf6 29. d7 Rxe6 30. d8=Q+ Rxd8 31. Rxd8+ Kf7 32. Rd7+ Kf6 33. Rxh7 Kg5 34. g3 e3 35. Bf3 e2 36. Bxe2 Re3 37. Rb7 Rxb3 38. h7 Rxg3 39. Rxb6 a4 40. Ra6 a3 41. Kd2 Kf4 42. Bd3 Rg2+ 43. Be2 Rh2 44. Rxa3 Rxh7 1/2-1/2

[Event "2nd Gujarat Open 2019"]
[Site "Ahmedabad, Gujarat"]
[Date "2019.09.22"]
[Round "?"]
[White "Shah, Vishwa"]
[Black "Siddharth, Jagadeesh"]
[Result "0-1"]
[ECO "B12"]
[WhiteElo "1760"]
[BlackElo "2362"]
[Annotator "NA"]
[PlyCount "116"]
[EventDate "2019.09.22"]
[EventCountry "IND"]
[SourceTitle "playchess.com"]
[Source "ChessBase"]
[SourceQuality "1"]
[TimeControl "5400+30"]

1. e4 {[%emt 0:00:00]} c6 {[%emt 0:00:07]} 2. d4 {[%emt 0:00:00]} d5 {[%emt 0:00:12]} 3. e5 {[%emt 0:00:00]} Bf5 {[%emt 0:00:50]} 4. Nf3 {[%emt 0:00:00]} e6 {[%emt 0:00:07]} 5. Be2 {[%emt 0:00:00]} Nd7 {[%emt 0:01:05]} 6. O-O {[%emt 0:00:07]} Bg6 {[%emt 0:00:44]} 7. Nbd2 {[%emt 0:00:41]} Nh6 {[%emt 0:00:16]} 8. Nb3 {[%emt 0:00:10]} Nf5 {[%emt 0:00:17]} 9. Bd2 {[%emt 0:03:46]} Be7 {[%emt 0:01:38]} 10. g4 {[%emt 0:01:07]} Nh6 {[%emt 0:00:06]} 11. Ne1 {[%emt 0:01:14]} O-O {[%emt 0:00:09]} 12. f4 {[%emt 0:06:57]} Be4 {[%emt 0:00:02]} 13. Be3 {[%emt 0:02:55]} f5 {[%emt 0:05:33]} 14. exf6 {[%emt 0:08:35]} Bxf6 {[%emt 0:05:09]} 15. Bd3 {[%emt 0:14:00]} Bxd3 {[%emt 0:01:46]} 16. Nxd3 {[%emt 0:00:04]} Nf7 {[%emt 0:02:33]} 17. g5 Be7 {[%emt 0:00:30]} 18. Qg4 Re8 {[%emt 0:00:30]} 19. Rae1 b6 {[%emt 0:00:30]} 20. Bf2 Nf8 {[%emt 0:00:30]} 21. Ne5 Nxe5 {[%emt 0:00:30]} 22. Rxe5 Bd6 {[%emt 0:00:30]} 23. Re2 Qc7 {[%emt 0:00:30]} 24. Bg3 c5 {[%emt 0:00:30]} 25. c3 a5 {[%emt 0:00:30]} 26. Nd2 cxd4 {[%emt 0:00:30]} 27. cxd4 a4 {[%emt 0:00:30]} 28. a3 b5 {[%emt 0:00:30]} 29. Rfe1 Rab8 {[%emt 0:00:30]} 30. Nf1 Qd7 {[%emt 0:00:30]} 31. Ne3 Bc7 {[%emt 0:00:30]} 32. f5 Bxg3 {[%emt 0:00:30]} 33. Qxg3 exf5 {[%emt 0:00:30]} 34. Nxf5 Rxe2 {[%emt 0:00:30]} 35. Rxe2 Re8 {[%emt 0:00:30]} 36. Rxe8 Qxe8 {[%emt 0:00:30]} 37. Qe5 Qxe5 {[%emt 0:00:30]} 38. dxe5 Ng6 {[%emt 0:00:30]} 39. e6 Nf4 {[%emt 0:00:30]} 40. e7 Kf7 {[%emt 0:00:30]} 41. Nxg7 Kxe7 {[%emt 0:00:30]} 42. Nf5+ Ke6 {[%emt 0:00:30]} 43. Nd4+ Ke5 {[%emt 0:00:30]} 44. Nxb5 Nd3 {[%emt 0:00:30]} 45. Kf1 Nxb2 {[%emt 0:00:30]} 46. Ke2 Ke4 {[%emt 0:00:30]} 47. h4 d4 {[%emt 0:00:30]} 48. Nxd4 Kxd4 {[%emt 0:00:30]} 49. h5 Nd3 {[%emt 0:00:30]} 50. Kf3 Kd5 {[%emt 0:00:30]} 51. Ke3 Ne5 {[%emt 0:00:30]} 52. Kf4 Ke6 {[%emt 0:00:30]} 53. Ke4 Nc4 {[%emt 0:00:30]} 54. Kd4 Nxa3 {[%emt 0:00:30]} 55. g6 hxg6 {[%emt 0:00:30]} 56. hxg6 Kf6 {[%emt 0:00:30]} 57. Kc3 Nb5+ {[%emt 0:00:30]} 58. Kb4 a3 {[%emt 0:00:30]} 0-1